fUSD/lending_fUSD_20250416
["ID","MTS","AMOUNT","RATE_DAILY","PERIOD"]
[358170601,1744815046426,-500.0,0.00055068,120]
[358170602,1744815046508,-500.0,0.00055068,120]
[358170603,1744815046594,-500.0,0.00055068,120]
[358170604,1744815046678,-500.0,0.00055068,120]
[358170605,1744815046763,-500.0,0.00055068,120]
[358170606,1744815046848,-500.0,0.00055068,120]
[358170607,1744815046932,-552.49472044,0.00055068,120]
[358170608,1744815047015,-500.0,0.00055068,120]
[358170609,1744815047096,-500.0,0.00055068,120]
[358170610,1744815047176,-500.0,0.00055068,120]
[358170611,1744815047257,-500.0,0.00055068,120]
[358170612,1744815047339,-1154.03,0.00055068,120]
[358170613,1744815047417,-500.0,0.00055068,120]
[358170614,1744815047491,-825.38,0.00055068,120]
[358170615,1744815047564,-500.0,0.00055068,120]
[358170616,1744815047641,-500.0,0.00055068,120]
[358170617,1744815047718,-500.0,0.00055068,120]
[358170618,1744815047801,-500.0,0.00055068,120]
[358170619,1744815047881,-500.0,0.00055068,120]
[358170620,1744815047958,-500.0,0.00055068,120]
[358170621,1744815048038,-560.05,0.00055068,120]
[358170622,1744815048122,-500.0,0.00055068,120]
[358170623,1744815048207,-500.0,0.00055068,120]
[358170624,1744815048296,-500.0,0.00055068,120]
[358170625,1744815048384,-1244.43,0.00055068,120]
[358170626,1744815048477,-500.0,0.00055068,120]
[358170627,1744815048577,-500.0,0.00055068,120]
[358170628,1744815048674,-500.0,0.00055068,120]
[358170629,1744815048766,-500.0,0.00055068,120]
[358170630,1744815048860,-1072.2,0.00055068,120]
[358170631,1744815048950,-500.0,0.00055068,120]
[358170632,1744815049048,-1000.0,0.00055068,120]
[358170633,1744815049138,-500.0,0.00055068,120]
[358170634,1744815049224,-500.0,0.00055068,120]
[358170635,1744815049313,-500.0,0.00055068,120]
[358170636,1744815049556,-500.0,0.00055068,120]
[358170637,1744815049645,-500.0,0.00055068,120]
[358170638,1744815049729,-500.0,0.00055068,120]
[358170639,1744815049817,-500.0,0.00055068,120]
[358170640,1744815049901,-150.20323701,0.00055341,120]
[358170641,1744815049982,-150.0,0.00055341,120]
[358170642,1744815050062,-150.0,0.00055341,120]
[358170643,1744815050141,-150.0,0.00055341,120]
[358170644,1744815050217,-201.60499459,0.00055341,120]
[358170645,1744815050297,-150.0,0.00055341,120]
[358170646,1744815050377,-150.0,0.00055341,120]
[358170647,1744815050457,-200.47874222,0.00055341,120]
[358170648,1744815050538,-500.0,0.00055341,120]
[358170649,1744815050616,-500.0,0.00055341,120]
[358170650,1744815050697,-500.0,0.00055341,120]
[358170651,1744815050781,-500.0,0.00055341,120]
[358170652,1744815050861,-500.0,0.00055341,120]
[358170653,1744815050939,-500.0,0.00055341,120]
[358170654,1744815051017,-575.0,0.00055341,120]
[358170655,1744815051096,-150.14322249,0.00055341,120]
[358170656,1744815051177,-500.0,0.00055342,120]
[358170657,1744815051260,-500.0,0.00055342,120]
[358170658,1744815051341,-500.0,0.00055342,120]
[358170659,1744815051421,-500.0,0.00055342,120]
[358170660,1744815051504,-500.0,0.00055342,120]
[358170661,1744815051587,-441.53083515,0.00055342,120]
[358170662,1744815051667,-500.0,0.00055342,120]
[358170663,1744815051747,-500.0,0.00055342,120]
[358170664,1744815051830,-500.0,0.00055342,120]
[358170665,1744815051903,-500.0,0.00055342,120]
[358170666,1744815051978,-500.0,0.00055342,120]
[358170667,1744815052053,-500.0,0.00055342,120]
[358170668,1744815052127,-500.0,0.00055342,120]
[358170669,1744815052200,-500.0,0.00055342,120]
[358170670,1744815052283,-500.0,0.00055342,120]
[358170671,1744815052359,-500.0,0.00055342,120]
[358170672,1744815052431,-500.0,0.00055342,120]
[358170673,1744815052507,-500.0,0.00055342,120]
[358170674,1744815052579,-500.0,0.00055342,120]
[358170675,1744815052650,-1154.03,0.00055342,120]
[358170676,1744815052723,-500.0,0.00055342,120]
[358170677,1744815052800,-500.0,0.00055342,120]
[358170678,1744815052876,-825.38,0.00055342,120]
[358170679,1744815052953,-500.0,0.00055342,120]
[358170680,1744815053032,-368.27246546,0.00055342,120]
[358170681,1744815053113,-153.5439293,0.00055342,120]
[358170682,1744815053193,-500.0,0.00055342,120]
[358170683,1744815053275,-500.0,0.00055342,120]
[358170684,1744815053356,-500.0,0.00055342,120]
[358170685,1744815053432,-560.05,0.00055342,120]
[358170686,1744815053509,-500.0,0.00055342,120]
[358170687,1744815053587,-500.0,0.00055342,120]
[358170688,1744815053663,-500.0,0.00055342,120]
[358170689,1744815053739,-1244.43,0.00055342,120]
[358170690,1744815053820,-500.0,0.00055342,120]
[358170691,1744815053898,-628.20274913,0.00055342,120]
[358170692,1744815053974,-500.0,0.00055342,120]
[358170693,1744815054049,-500.0,0.00055342,120]
[358170694,1744815054124,-1072.2,0.00055342,120]
[358170695,1744815054200,-1000.0,0.00055342,120]
[358170696,1744815054280,-500.0,0.00055342,120]
[358170697,1744815054360,-500.0,0.00055342,120]
[358170698,1744815054441,-500.0,0.00055342,120]
[358170699,1744815054527,-500.0,0.00055342,120]
[358170700,1744815054612,-500.0,0.00055342,120]
[358170701,1744815054692,-500.0,0.00055342,120]
[358170702,1744815054776,-500.0,0.00055342,120]
[358170703,1744815054860,-285.84370729,0.00055342,120]
[358170704,1744815054940,-2110.0,0.000555,30]
[358170705,1744815055019,-500.0,0.00055616,120]
[358170706,1744815055097,-500.0,0.00055616,120]
[358170707,1744815055168,-500.0,0.00055616,120]
[358170708,1744815055242,-261.71748094,0.00055616,120]
[358170709,1744815055320,-472.41010786,0.00055616,120]
[358170710,1744815055397,-500.0,0.00055616,120]
[358170711,1744815055477,-500.0,0.00055616,120]
[358170712,1744815055558,-310.21766005,0.00055616,120]
[358170713,1744815055644,-500.0,0.00055616,120]
[358170714,1744815055732,-500.0,0.00055616,120]
[358170715,1744815055820,-500.0,0.00055616,120]
[358170716,1744815055902,-400.10052637,0.00055616,120]
[358170717,1744815055984,-500.0,0.00055616,120]
[358170718,1744815056068,-500.0,0.00055616,120]
[358170719,1744815056149,-500.0,0.00055616,120]
[358170720,1744815056228,-500.0,0.00055616,120]
[358170721,1744815056311,-500.0,0.00055616,120]
[358170722,1744815056391,-500.0,0.00055616,120]
[358170723,1744815056472,-1154.03,0.00055616,120]
[358170724,1744815056555,-500.0,0.00055616,120]
[358170725,1744815056638,-511.75208914,0.00055616,120]
[358170726,1744815056722,-825.38,0.00055616,120]
[358170727,1744815056810,-500.0,0.00055616,120]
[358170728,1744815056895,-637.62772848,0.00055616,120]
[358170729,1744815056975,-500.0,0.00055616,120]
[358170730,1744815057054,-500.0,0.00055616,120]
[358170731,1744815057131,-560.05,0.00055616,120]
[358170732,1744815057212,-500.0,0.00055616,120]
[358170733,1744815057297,-500.0,0.00055616,120]
[358170734,1744815057379,-500.0,0.00055616,120]
[358170735,1744815057460,-1244.43,0.00055616,120]
[358170736,1744815057542,-500.0,0.00055616,120]
[358170737,1744815057627,-500.0,0.00055616,120]
[358170738,1744815057709,-500.0,0.00055616,120]
[358170739,1744815057939,-1072.2,0.00055616,120]
[358170740,1744815058027,-1000.0,0.00055616,120]
[358170741,1744815058106,-500.0,0.00055616,120]
[358170742,1744815058181,-500.0,0.00055616,120]
[358170743,1744815058259,-500.0,0.00055616,120]
[358170744,1744815058339,-500.0,0.00055616,120]
[358170745,1744815058414,-500.0,0.00055616,120]
[358170746,1744815058495,-500.0,0.00055616,120]
[358170747,1744815058574,-500.0,0.00055616,120]
[358170748,1744815058651,-500.0,0.0005589,120]
[358170749,1744815058730,-151.0,0.0005589,120]
[358170750,1744815058814,-151.0,0.0005589,120]
[358170751,1744815058899,-500.0,0.0005589,120]
[358170752,1744815058982,-500.0,0.0005589,120]
[358170753,1744815059065,-500.0,0.0005589,120]
[358170754,1744815059146,-500.0,0.0005589,120]
[358170755,1744815059225,-500.0,0.0005589,120]
[358170756,1744815059307,-500.0,0.0005589,120]
[358170757,1744815059388,-500.0,0.0005589,120]
[358170758,1744815059467,-500.0,0.0005589,120]
[358170759,1744815059547,-500.0,0.0005589,120]
[358170760,1744815059629,-500.0,0.0005589,120]
[358170761,1744815059713,-500.0,0.0005589,120]
[358170762,1744815059795,-365.1225469,0.0005589,120]
[358170763,1744815059876,-500.0,0.0005589,120]
[358170764,1744815059957,-1154.03,0.0005589,120]
[358170765,1744815060041,-500.0,0.0005589,120]
[358170766,1744815060129,-825.38,0.0005589,120]
[358170767,1744815060214,-500.0,0.0005589,120]
[358170768,1744815060308,-500.0,0.0005589,120]
[358170769,1744815060392,-500.0,0.0005589,120]
[358170770,1744815060474,-560.05,0.0005589,120]
[358170771,1744815060556,-500.0,0.0005589,120]
[358170772,1744815060633,-500.0,0.0005589,120]
[358170773,1744815060702,-500.0,0.0005589,120]
[358170774,1744815060777,-1244.43,0.0005589,120]
[358170775,1744815060856,-500.0,0.0005589,120]
[358170776,1744815060927,-500.0,0.0005589,120]
[358170777,1744815060998,-500.0,0.0005589,120]
[358170778,1744815061070,-1072.2,0.0005589,120]
[358170779,1744815061144,-500.0,0.0005589,120]
[358170780,1744815061219,-1000.0,0.0005589,120]
[358170781,1744815061301,-500.0,0.0005589,120]
[358170782,1744815061383,-500.0,0.0005589,120]
[358170783,1744815061466,-500.0,0.0005589,120]
[358170784,1744815061547,-579.67869598,0.0005589,120]
[358170785,1744815061629,-500.0,0.0005589,120]
[358170786,1744815061713,-449.94048914,0.0005589,120]
[358170787,1744815061801,-349.51139603,0.00056,120]
[358170788,1744815061890,-566713.17313626,0.00056,120]
[358170789,1744815061979,-1000000.0,0.00056,120]
[358170790,1744815062071,-1000000.0,0.00056,120]
[358170791,1744815062164,-1000000.0,0.00056,120]
[358170792,1744815062259,-151.0,0.00056,120]
[358170793,1744815062353,-151.0,0.00056,120]
[358170794,1744815062446,-151.0,0.00056,120]
[358170795,1744815062541,-151.0,0.00056,120]
[358170796,1744815062629,-151.0,0.00056,120]
[358170797,1744815062718,-151.0,0.00056,120]
[358170798,1744815062808,-2110.0,0.00056,30]
[358170799,1744815062895,-162.664649,0.00056,120]
[358170800,1744815062976,-151.0,0.00056,120]
[358170801,1744815063062,-165.180013,0.00056,120]
[358170802,1744815063147,-152.014761,0.00056,120]
[358170803,1744815063233,-151.0,0.00056,120]
[358170804,1744815063327,-187.194124,0.00056,120]
[358170805,1744815063410,-151.0,0.00056,120]
[358170806,1744815063512,-1000000.0,0.00056,120]
[358170807,1744815063613,-1243.06979,0.00056164,120]
[358170808,1744815063715,-6585.42,0.00056164,90]
[358170809,1744815063816,-500.0,0.00056164,120]
[358170810,1744815063907,-1306.35,0.00056164,120]
[358170811,1744815064001,-500.0,0.00056164,120]
[358170812,1744815064096,-1665.11,0.00056164,120]
[358170813,1744815064191,-500.0,0.00056164,120]
[358170814,1744815064287,-500.0,0.00056164,120]
[358170815,1744815064382,-500.0,0.00056164,120]
[358170816,1744815064474,-500.0,0.00056164,120]
[358170817,1744815064562,-500.0,0.00056164,120]
[358170818,1744815064656,-765.33,0.00056164,120]
[358170819,1744815064746,-500.0,0.00056164,120]
[358170820,1744815064837,-500.0,0.00056164,120]
[358170821,1744815064926,-500.0,0.00056164,120]
[358170822,1744815065019,-637.3,0.00056164,120]
[358170823,1744815065109,-500.0,0.00056164,120]
[358170824,1744815065199,-500.0,0.00056164,120]
[358170825,1744815065295,-585.46501142,0.00056164,120]
[358170826,1744815065385,-500.0,0.00056164,120]
[358170827,1744815065475,-605.4907013,0.00056164,120]
[358170828,1744815065561,-500.0,0.00056164,120]
[358170829,1744815065648,-500.0,0.00056164,120]
[358170830,1744815065736,-500.0,0.00056164,120]
[358170831,1744815065827,-500.0,0.00056164,120]
[358170832,1744815065910,-500.0,0.00056164,120]
[358170833,1744815065996,-500.0,0.00056164,120]
[358170834,1744815066084,-500.0,0.00056164,120]
[358170835,1744815066183,-500.0,0.00056164,120]
[358170836,1744815066275,-500.0,0.00056164,120]
[358170837,1744815066364,-500.0,0.00056164,120]
[358170838,1744815066450,-500.0,0.00056164,120]
[358170839,1744815066537,-567.31439052,0.00056164,120]
[358170840,1744815066622,-500.0,0.00056164,120]
[358170841,1744815066710,-500.0,0.00056164,120]
[358170842,1744815066799,-500.0,0.00056164,120]
[358170843,1744815066882,-500.0,0.00056164,120]
[358170844,1744815066962,-500.0,0.00056164,120]
[358170845,1744815067045,-500.0,0.00056164,120]
[358170846,1744815067131,-500.0,0.00056164,120]
[358170847,1744815067217,-500.0,0.00056164,120]
[358170848,1744815067302,-500.0,0.00056164,120]
[358170849,1744815067386,-500.0,0.00056164,120]
[358170850,1744815067467,-500.0,0.00056164,120]
[358170851,1744815067546,-500.0,0.00056164,120]
[358170852,1744815067624,-500.0,0.00056164,120]
[358170853,1744815067703,-500.0,0.00056164,120]
[358170854,1744815067789,-633.68,0.00056164,120]
[358170855,1744815067871,-500.0,0.00056164,120]
[358170856,1744815067953,-500.0,0.00056164,120]
[358170857,1744815068034,-500.0,0.00056164,120]
[358170858,1744815068114,-500.0,0.00056164,120]
[358170859,1744815068196,-500.0,0.00056164,120]
[358170860,1744815068279,-500.0,0.00056164,120]
[358170861,1744815068363,-500.0,0.00056164,120]
[358170862,1744815068448,-500.0,0.00056164,120]
[358170863,1744815068538,-500.0,0.00056164,120]
[358170864,1744815068635,-1291.19,0.00056164,120]
[358170865,1744815068729,-500.0,0.00056164,120]
[358170866,1744815068823,-500.0,0.00056164,120]
[358170867,1744815068910,-2405.34,0.00056164,120]
[358170868,1744815068995,-500.0,0.00056164,120]
[358170869,1744815069083,-500.0,0.00056164,120]
[358170870,1744815069564,-500.0,0.00056164,120]
[358170871,1744815069657,-1984.48,0.00056164,120]
[358170872,1744815069743,-500.0,0.00056164,120]
[358170873,1744815069832,-500.0,0.00056164,120]
[358170874,1744815069918,-1154.69,0.00056164,120]
[358170875,1744815070003,-500.0,0.00056164,120]
[358170876,1744815070086,-859.65,0.00056164,120]
[358170877,1744815070171,-500.0,0.00056164,120]
[358170878,1744815070257,-500.0,0.00056164,120]
[358170879,1744815070344,-500.0,0.00056164,120]
[358170880,1744815070429,-500.0,0.00056164,120]
[358170881,1744815070516,-500.0,0.00056164,120]
[358170882,1744815070600,-1550.92,0.00056164,120]
[358170883,1744815070682,-500.0,0.00056164,120]
[358170884,1744815070760,-500.0,0.00056164,120]
[358170885,1744815070838,-500.0,0.00056164,120]
[358170886,1744815070912,-1327.19,0.00056164,35]
[358170887,1744815070989,-500.0,0.00056164,120]
[358170888,1744815071063,-500.0,0.00056164,30]
[358170889,1744815071138,-1239.55,0.00056164,120]
[358170890,1744815071211,-1194.22,0.00056164,120]
[358170891,1744815071285,-1406.48,0.00056164,120]
[358170892,1744815071357,-823.16,0.00056164,120]
[358170893,1744815071430,-610.03,0.00056164,120]
[358170894,1744815071506,-196.67607136,0.00056164,120]
[358170895,1744815071581,-1446.67,0.00056164,120]
[358170896,1744815071660,-1272.59,0.00056164,120]
[358170897,1744815071737,-500.0,0.00056164,120]
[358170898,1744815071817,-1436.95,0.00056164,120]
[358170899,1744815071896,-500.0,0.00056164,120]
[358170900,1744815071974,-566.62087224,0.00056164,120]
[358170901,1744815072057,-500.0,0.00056164,120]
[358170902,1744815072137,-500.0,0.00056164,120]
[358170903,1744815072211,-500.0,0.00056164,120]
[358170904,1744815072287,-500.0,0.00056164,120]
[358170905,1744815072360,-560.56384674,0.00056164,120]
[358170906,1744815072433,-500.0,0.00056164,120]
[358170907,1744815072505,-500.0,0.00056164,40]
[358170908,1744815072577,-1065.65,0.00056164,120]
[358170909,1744815072649,-500.0,0.00056164,120]
[358170910,1744815072724,-500.0,0.00056164,120]
[358170911,1744815072807,-1106.45,0.00056164,120]
[358170912,1744815072884,-500.0,0.00056164,120]
[358170913,1744815072966,-636.66492489,0.00056164,120]
[358170914,1744815073042,-1467.04,0.00056164,120]
[358170915,1744815073120,-500.0,0.00056164,120]
[358170916,1744815073196,-500.0,0.00056164,120]
[358170917,1744815073278,-556.41,0.00056164,120]
[358170918,1744815073360,-500.0,0.00056164,120]
[358170919,1744815073439,-500.0,0.00056164,120]
[358170920,1744815073520,-500.0,0.00056164,120]
[358170921,1744815073606,-1902.3,0.00056164,120]
[358170922,1744815073681,-500.0,0.00056164,120]
[358170923,1744815073758,-1316.02,0.00056164,120]
[358170924,1744815073844,-500.0,0.00056164,120]
[358170925,1744815073926,-312.69629826,0.00056164,120]
[358170926,1744815074009,-1734.75,0.00056164,120]
[358170927,1744815074090,-500.0,0.00056164,120]
[358170928,1744815074169,-500.0,0.00056164,120]
[358170929,1744815074254,-469.68156371,0.00056164,120]
[358170930,1744815074339,-583.37166112,0.00056164,120]
[358170931,1744815074423,-1956.07,0.00056164,120]
[358170932,1744815074508,-500.0,0.00056164,120]
[358170933,1744815074591,-500.0,0.00056164,120]
[358170934,1744815074674,-1151.52,0.00056164,120]
[358170935,1744815074758,-506.27638528,0.00056164,120]
[358170936,1744815074843,-500.0,0.00056164,120]
[358170937,1744815074920,-1094.55,0.00056164,120]
[358170938,1744815074996,-760.37,0.00056164,120]
[358170939,1744815075076,-160.1039806,0.00056164,120]
[358170940,1744815075153,-500.0,0.00056164,120]
[358170941,1744815075235,-1445.11,0.00056164,120]
[358170942,1744815075319,-901.79,0.00056164,30]
[358170943,1744815075401,-2153.97,0.00056164,120]
[358170944,1744815075481,-500.0,0.00056164,120]
[358170945,1744815075563,-500.0,0.00056164,120]
[358170946,1744815075642,-500.0,0.00056164,120]
[358170947,1744815075723,-500.0,0.00056164,120]
[358170948,1744815075805,-500.0,0.00056164,120]
[358170949,1744815075883,-500.0,0.00056164,120]
[358170950,1744815075957,-500.0,0.00056164,120]
[358170951,1744815076032,-1207.85,0.00056164,120]
[358170952,1744815076108,-500.0,0.00056164,120]
[358170953,1744815076186,-500.0,0.00056164,120]
[358170954,1744815076268,-1000.0,0.00056164,120]
[358170955,1744815076352,-500.0,0.00056164,120]
[358170956,1744815076432,-500.0,0.00056164,120]
[358170957,1744815076508,-1092.84,0.00056164,120]
[358170958,1744815076586,-1572.69,0.00056164,120]
[358170959,1744815076665,-500.0,0.00056164,120]
[358170960,1744815076749,-500.0,0.00056164,120]
[358170961,1744815076836,-574.53391339,0.00056164,120]
[358170962,1744815076930,-500.0,0.00056164,30]
[358170963,1744815077029,-500.0,0.00056164,120]
[358170964,1744815077114,-500.0,0.00056164,120]
[358170965,1744815077200,-2192.06,0.00056164,120]
[358170966,1744815077283,-500.0,0.00056164,120]
[358170967,1744815077379,-515.5520201,0.00056164,120]
[358170968,1744815077463,-609.68293061,0.00056164,120]
[358170969,1744815077547,-500.0,0.00056164,120]
[358170970,1744815077810,-500.0,0.00056164,120]
[358170971,1744815077894,-2358.99,0.00056164,120]
[358170972,1744815077972,-1214.24,0.00056164,120]
[358170973,1744815078049,-500.0,0.00056164,120]
[358170974,1744815078125,-1582.43,0.00056164,120]
[358170975,1744815078202,-1147.0,0.00056164,120]
[358170976,1744815078283,-500.0,0.00056164,120]
[358170977,1744815078365,-1450.41,0.00056164,120]
[358170978,1744815078453,-599.19687095,0.00056164,120]
[358170979,1744815078536,-500.0,0.00056164,120]
[358170980,1744815078618,-500.0,0.00056164,120]
[358170981,1744815078703,-821.79,0.00056164,120]
[358170982,1744815078785,-1508.18,0.00056164,120]
[358170983,1744815078872,-1287.91,0.00056164,120]
[358170984,1744815078954,-500.0,0.00056164,120]
[358170985,1744815079040,-500.0,0.00056164,120]
[358170986,1744815079124,-500.0,0.00056164,120]
[358170987,1744815079206,-341.62075635,0.00056164,120]
[358170988,1744815079291,-500.0,0.00056164,120]
[358170989,1744815079376,-500.0,0.00056164,120]
[358170990,1744815079458,-500.0,0.00056164,120]
[358170991,1744815079546,-844.87,0.00056164,120]
[358170992,1744815079635,-500.0,0.00056164,120]
[358170993,1744815079724,-500.0,0.00056164,120]
[358170994,1744815079812,-500.0,0.00056164,120]
[358170995,1744815079901,-500.0,0.00056164,120]
[358170996,1744815079987,-1142.18,0.00056164,120]
[358170997,1744815080072,-500.0,0.00056164,120]
[358170998,1744815080162,-777.56,0.00056164,120]
[358170999,1744815080248,-500.0,0.00056164,120]
[358171000,1744815080330,-411.87357393,0.00056164,120]
[358171001,1744815080408,-500.0,0.00056164,120]
[358171002,1744815080485,-500.0,0.00056164,120]
[358171003,1744815080563,-500.0,0.00056164,120]
[358171004,1744815080644,-500.0,0.00056164,120]
[358171005,1744815080725,-500.0,0.00056164,120]
[358171006,1744815080810,-500.0,0.00056164,120]
[358171007,1744815080893,-500.0,0.00056164,120]
[358171008,1744815080976,-500.0,0.00056164,120]
[358171009,1744815081059,-500.0,0.00056164,120]
[358171010,1744815081142,-500.0,0.00056164,120]
[358171011,1744815081228,-500.0,0.00056164,120]
[358171012,1744815081315,-1336.53,0.00056164,120]
[358171013,1744815081406,-500.0,0.00056164,120]
[358171014,1744815081495,-611.77242808,0.00056164,120]
[358171015,1744815081583,-548.6,0.00056164,120]
[358171016,1744815081669,-500.0,0.00056164,120]
[358171017,1744815081755,-500.0,0.00056164,120]
[358171018,1744815081844,-500.0,0.00056164,120]
[358171019,1744815081927,-864.66,0.00056164,120]
[358171020,1744815082010,-500.0,0.00056164,120]
[358171021,1744815082091,-400.81651715,0.00056164,120]
[358171022,1744815082171,-500.0,0.00056164,120]
[358171023,1744815082252,-500.0,0.00056164,120]
[358171024,1744815082336,-500.0,0.00056164,120]
[358171025,1744815082416,-305.3224119,0.00056164,120]
[358171026,1744815082498,-1600.01,0.00056164,120]
[358171027,1744815082585,-500.0,0.00056164,120]
[358171028,1744815082664,-500.0,0.00056164,120]
[358171029,1744815082745,-500.0,0.00056164,120]
[358171030,1744815082831,-500.0,0.00056164,120]
[358171031,1744815082913,-500.0,0.00056164,120]
[358171032,1744815082990,-500.0,0.00056164,120]
[358171033,1744815083067,-500.0,0.00056164,120]
[358171034,1744815083142,-500.0,0.00056164,120]
[358171035,1744815083214,-1119.49,0.00056164,120]
[358171036,1744815083292,-500.0,0.00056164,120]
[358171037,1744815083369,-500.0,0.00056164,120]
[358171038,1744815083451,-500.0,0.00056164,120]
[358171039,1744815083528,-1164.47,0.00056164,120]
[358171040,1744815083608,-500.0,0.00056164,120]
[358171041,1744815083686,-500.0,0.00056164,120]
[358171042,1744815083763,-500.0,0.00056164,120]
[358171043,1744815083846,-500.0,0.00056164,120]
[358171044,1744815083926,-500.0,0.00056164,120]
[358171045,1744815084006,-500.0,0.00056164,120]
[358171046,1744815084087,-500.0,0.00056164,120]
[358171047,1744815084167,-500.0,0.00056164,120]
[358171048,1744815084256,-2157.23,0.00056164,120]
[358171049,1744815084347,-500.0,0.00056164,120]
[358171050,1744815084439,-500.0,0.00056164,120]
[358171051,1744815084529,-2143.66,0.00056164,120]
[358171052,1744815084620,-500.0,0.00056164,120]
[358171053,1744815084703,-2137.01,0.00056164,120]
[358171054,1744815084781,-500.0,0.00056164,120]
[358171055,1744815084861,-1217.27,0.00056164,120]
[358171056,1744815084935,-151.57086578,0.00056164,120]
[358171057,1744815085011,-1362.34,0.00056164,120]
[358171058,1744815085089,-500.0,0.00056164,120]
[358171059,1744815085170,-744.68,0.00056164,120]
[358171060,1744815085264,-500.0,0.00056164,120]
[358171061,1744815085355,-500.0,0.00056164,120]
[358171062,1744815085440,-604.43521496,0.00056164,120]
[358171063,1744815085526,-500.0,0.00056164,118]
[358171064,1744815085617,-1016.72,0.00056164,120]
[358171065,1744815085704,-500.0,0.00056164,120]
[358171066,1744815085790,-500.0,0.00056164,120]
[358171067,1744815085872,-500.0,0.00056164,120]
[358171068,1744815085952,-555.73539736,0.00056164,120]
[358171069,1744815086036,-500.0,0.00056164,120]
[358171070,1744815086118,-500.0,0.00056164,120]
[358171071,1744815086204,-500.0,0.00056164,120]
[358171072,1744815086293,-500.0,0.00056164,120]
[358171073,1744815086384,-500.0,0.00056164,120]
[358171074,1744815086679,-995.69,0.00056164,120]
[358171075,1744815086767,-500.0,0.00056164,120]
[358171076,1744815086854,-500.0,0.00056164,120]
[358171077,1744815086937,-574.46,0.00056164,120]
[358171078,1744815087026,-991.54,0.00056164,120]
[358171079,1744815087119,-500.0,0.00056164,120]
[358171080,1744815087209,-500.0,0.00056164,120]
[358171081,1744815087296,-904.33,0.00056164,120]
[358171082,1744815087378,-500.0,0.00056164,120]
[358171083,1744815087460,-151.0,0.00056164,120]
[358171084,1744815087545,-230.576732,0.00056164,120]
[358171085,1744815087633,-500.0,0.00056164,120]
[358171086,1744815087726,-500.0,0.00056164,120]
[358171087,1744815087810,-500.0,0.00056164,120]
[358171088,1744815087890,-500.0,0.00056164,120]
[358171089,1744815087971,-500.0,0.00056164,120]
[358171090,1744815088051,-500.0,0.00056164,120]
[358171091,1744815088132,-500.0,0.00056164,120]
[358171092,1744815088218,-500.0,0.00056164,120]
[358171093,1744815088302,-500.0,0.00056164,120]
[358171094,1744815088388,-500.0,0.00056164,120]
[358171095,1744815088469,-500.0,0.00056164,120]
[358171096,1744815088552,-500.0,0.00056164,120]
[358171097,1744815088634,-1154.03,0.00056164,120]
[358171098,1744815088717,-500.0,0.00056164,120]
[358171099,1744815088799,-825.38,0.00056164,120]
[358171100,1744815088885,-500.0,0.00056164,120]